fUST/lending_fUST_20250625
["ID","MTS","AMOUNT","RATE_DAILY","PERIOD"]
[367557176,1750853454539,-500.0,0.00017682,2]
[367557177,1750853454548,-500.0,0.00017682,2]
[367557178,1750853454557,-500.0,0.00017682,2]
[367557179,1750853454566,-323.53624007,0.00017682,2]
[367557180,1750853454575,-500.0,0.00017682,2]
[367557181,1750853454584,-500.0,0.00017682,2]
[367557182,1750853454593,-500.0,0.00017682,2]
[367557183,1750853454602,-500.0,0.00017682,2]
[367557184,1750853454611,-500.0,0.00017682,2]
[367557185,1750853454620,-500.0,0.00017682,2]
[367557186,1750853454629,-500.0,0.00017682,2]
[367557187,1750853454638,-500.0,0.00017682,2]
[367557188,1750853454647,-25000.0,0.00017682,2]
[367557189,1750853454656,-21409.01117136,0.00017682,2]
[367557190,1750853454665,-151.0,0.000177,2]
[367557191,1750853454674,-7226.84719651,0.00017728,2]
[367557192,1750853454683,-151.0,0.000178,2]
[367557193,1750853454692,-226.18846702,0.00017861,2]
[367557194,1750853454701,-460.0,0.00017874,2]
[367557195,1750853454710,-460.0,0.00017874,2]
[367557196,1750853454720,-460.0,0.00017874,2]
[367557197,1750853454730,-508.3,0.00017874,2]
[367557198,1750853454739,-476.05,0.00017874,2]
[367557199,1750853454748,-1482.13,0.00017874,2]
[367557200,1750853454757,-2765.63,0.00017874,2]
[367557201,1750853454766,-460.0,0.00017874,2]
[367557202,1750853454775,-3064.74,0.00017874,2]
[367557203,1750853454784,-460.0,0.00017874,2]
[367557204,1750853454793,-151.0,0.00017874,2]
[367557205,1750853454802,-460.0,0.00017874,2]
[367557206,1750853454812,-151.0,0.00017874,2]
[367557207,1750853454821,-460.0,0.00017874,2]
[367557208,1750853454830,-460.0,0.00017874,2]
[367557209,1750853454839,-2702.51,0.00017874,2]
[367557210,1750853454848,-1590.6,0.00017875,2]
[367557211,1750853454857,-2531.11,0.00017875,2]
[367557212,1750853454866,-460.0,0.00017875,2]
[367557213,1750853454875,-460.0,0.00017875,2]
[367557214,1750853454884,-999.7,0.00017875,2]
[367557215,1750853454893,-1646.41,0.00017875,2]
[367557216,1750853454903,-471.74,0.00017875,2]
[367557217,1750853454912,-460.0,0.00017875,2]
[367557218,1750853454921,-460.0,0.00017875,2]
[367557219,1750853454930,-460.0,0.00017875,2]
[367557220,1750853454938,-585.17,0.00017875,2]
[367557221,1750853454948,-460.0,0.00017875,2]
[367557222,1750853454956,-828.45,0.00017875,2]
[367557223,1750853454965,-460.0,0.00017875,2]
[367557224,1750853454974,-460.0,0.00017875,2]
[367557225,1750853454982,-460.0,0.00017875,2]
[367557226,1750853454992,-460.0,0.00017876,2]
[367557227,1750853455000,-415.38,0.00017876,2]
[367557228,1750853455009,-460.0,0.00017876,2]
[367557229,1750853455018,-500.15,0.00017876,2]
[367557230,1750853455027,-274.58950516,0.00017876,2]
[367557231,1750853455035,-460.0,0.00017876,2]
[367557232,1750853455044,-151.0,0.00017876,2]
[367557233,1750853455053,-460.0,0.00017876,2]
[367557234,1750853455062,-460.0,0.00017876,2]
[367557235,1750853455071,-460.0,0.00017876,2]
[367557236,1750853455079,-460.0,0.00017876,2]
[367557237,1750853455088,-151.0,0.00017876,2]
[367557238,1750853455096,-460.0,0.00017876,2]
[367557239,1750853455104,-151.0,0.00017876,2]
[367557240,1750853455111,-286.9,0.00017876,2]
[367557241,1750853455119,-460.0,0.00017876,2]
[367557242,1750853455128,-460.0,0.00017876,2]
[367557243,1750853455138,-460.0,0.00017876,2]
[367557244,1750853455147,-472.42,0.00017876,2]
[367557245,1750853455156,-664.93,0.00017876,2]
[367557246,1750853455166,-460.0,0.00017876,2]
[367557247,1750853455175,-460.0,0.00017876,2]
[367557248,1750853455184,-460.0,0.00017876,2]
[367557249,1750853455194,-151.0,0.00017876,2]
[367557250,1750853455203,-785.78,0.00017876,2]
[367557251,1750853455213,-460.0,0.00017876,2]
[367557252,1750853455223,-570.31,0.00017876,2]
[367557253,1750853455232,-460.0,0.00017876,2]
[367557254,1750853455241,-4575.74,0.00017876,2]
[367557255,1750853455250,-460.0,0.00017876,2]
[367557256,1750853455260,-368.373694,0.00017876,2]
[367557257,1750853455269,-460.0,0.00017876,2]
[367557258,1750853455279,-368.373694,0.00017876,2]
[367557259,1750853455288,-882.47,0.00017876,2]
[367557260,1750853455297,-460.0,0.00017876,2]
[367557261,1750853455307,-460.0,0.00017876,2]
[367557262,1750853455316,-844.11,0.00017876,2]
[367557263,1750853455329,-460.0,0.00017876,2]
[367557264,1750853455338,-460.0,0.00017876,2]
[367557265,1750853455347,-4869.53,0.00017876,2]
[367557266,1750853455357,-460.0,0.00017876,2]
[367557267,1750853455366,-197.99460036,0.00017876,2]
[367557268,1750853455376,-460.0,0.00017876,2]
[367557269,1750853455386,-460.0,0.00017876,2]
[367557270,1750853455396,-151.0,0.00017876,2]
[367557271,1750853455406,-460.0,0.00017876,2]
[367557272,1750853455415,-151.0,0.00017876,2]
[367557273,1750853455425,-460.0,0.00017876,2]
[367557274,1750853455434,-460.0,0.00017876,2]
[367557275,1750853455443,-154.743288,0.00017876,2]
[367557276,1750853455452,-460.0,0.00017876,2]
[367557277,1750853455461,-154.743288,0.00017876,2]
[367557278,1750853455471,-151.0,0.00017876,2]
[367557279,1750853455480,-541.05,0.00017876,2]
[367557280,1750853455491,-460.0,0.00017876,2]
[367557281,1750853455500,-2293.61,0.00017876,2]
[367557282,1750853455509,-460.0,0.00017876,2]
[367557283,1750853455608,-588.21,0.00017877,2]
[367557284,1750853455618,-460.0,0.00017877,2]
[367557285,1750853455627,-582.32,0.00017877,2]
[367557286,1750853455636,-618.04,0.00017877,2]
[367557287,1750853455646,-460.0,0.00017877,2]
[367557288,1750853455655,-2654.61,0.00017877,2]
[367557289,1750853455664,-460.0,0.00017877,2]
[367557290,1750853455674,-2077.28,0.00017877,2]
[367557291,1750853455683,-460.0,0.00017877,2]
[367557292,1750853455692,-1737.61,0.00017877,2]
[367557293,1750853455702,-460.0,0.00017877,2]
[367557294,1750853455711,-5429.04,0.00017877,2]
[367557295,1750853455720,-1878.65,0.00017877,2]
[367557296,1750853455729,-1443.0,0.00017877,2]
[367557297,1750853455738,-460.0,0.00017877,2]
[367557298,1750853455748,-1131.81,0.00017877,2]
[367557299,1750853455757,-460.0,0.00017877,2]
[367557300,1750853455767,-460.0,0.00017878,2]
[367557301,1750853455777,-460.0,0.00017878,2]
[367557302,1750853455786,-279.8,0.00017878,2]
[367557303,1750853455795,-475.32,0.00017878,2]
[367557304,1750853455804,-460.0,0.00017878,2]
[367557305,1750853455813,-460.0,0.00017878,2]
[367557306,1750853455822,-460.0,0.00017878,2]
[367557307,1750853455832,-460.0,0.00017878,2]
[367557308,1750853455841,-342.26,0.00017878,2]
[367557309,1750853455851,-460.0,0.00017879,2]
[367557310,1750853455860,-460.0,0.00017879,2]
[367557311,1750853455870,-512.06,0.00017879,2]
[367557312,1750853455879,-460.0,0.00017879,2]
[367557313,1750853455889,-460.0,0.00017879,2]
[367557314,1750853455898,-561.63,0.00017879,2]
[367557315,1750853455907,-557.14,0.00017879,2]
[367557316,1750853455917,-460.0,0.00017879,2]
[367557317,1750853455926,-460.0,0.00017879,2]
[367557318,1750853455935,-264.62,0.00017879,2]
[367557319,1750853455944,-881.44,0.00017879,2]
[367557320,1750853455954,-460.0,0.00017879,2]
[367557321,1750853455963,-460.0,0.00017879,2]
[367557322,1750853455972,-151.0,0.00017879,2]
[367557323,1750853455981,-404.008194,0.00017879,2]
[367557324,1750853455991,-404.008194,0.00017879,2]
[367557325,1750853456001,-151.0,0.00017879,2]
[367557326,1750853456010,-214.539556,0.00017879,2]
[367557327,1750853456019,-214.539556,0.00017879,2]
[367557328,1750853456028,-207.922743,0.00017879,2]
[367557329,1750853456038,-207.922743,0.00017879,2]
[367557330,1750853456047,-151.0,0.000179,2]
[367557331,1750853456057,-1000.0,0.00017955,2]
[367557332,1750853456067,-1000.0,0.00017955,2]
[367557333,1750853456076,-1000.0,0.00017971,2]
[367557334,1750853456086,-1000.0,0.00017975,2]
[367557335,1750853456095,-503.48369518,0.00017975,2]
[367557336,1750853456105,-322.11229798,0.00017975,2]
[367557337,1750853456114,-500.0,0.00017978,2]
[367557338,1750853456123,-500.0,0.00017987,2]
[367557339,1750853456133,-1000.0,0.00018,2]
[367557340,1750853456142,-7226.84719651,0.00018003,2]
[367557341,1750853456151,-151.0,0.00018004,2]
[367557342,1750853456161,-1888.21926,0.00018004,2]
[367557343,1750853456170,-1888.21926,0.00018004,2]
[367557344,1750853456180,-649.0,0.00018032,2]
[367557345,1750853456189,-169.01433676,0.0001805,2]
[367557346,1750853456199,-170.876532,0.00018102,2]
[367557347,1750853456208,-219.78259,0.00018102,2]
[367557348,1750853456217,-170.876532,0.00018102,2]
[367557349,1750853456227,-219.78259,0.00018102,2]
[367557350,1750853456236,-528.82711,0.00018102,2]
[367557351,1750853456246,-528.82711,0.00018102,2]
[367557352,1750853456255,-2707.16,0.00018143,3]
[367557353,1750853456264,-1353.58,0.00018143,3]
[367557354,1750853456274,-676.8,0.00018143,3]
[367557355,1750853456283,-338.4,0.00018143,3]
[367557356,1750853456292,-219.28314007,0.00018148,2]
[367557357,1750853456302,-460.0,0.00018148,2]
[367557358,1750853456312,-1482.13,0.00018148,2]
[367557359,1750853456321,-2765.63,0.00018148,2]
[367557360,1750853456335,-360.1,0.00018148,2]
[367557361,1750853456345,-3064.74,0.00018148,2]
[367557362,1750853456354,-460.0,0.00018148,2]
[367557363,1750853456363,-460.0,0.00018148,2]
[367557364,1750853456374,-460.0,0.00018148,2]
[367557365,1750853456383,-460.0,0.00018148,2]
[367557366,1750853456393,-2702.51,0.00018148,2]
[367557367,1750853456403,-1590.6,0.00018149,2]
[367557368,1750853456412,-2531.11,0.00018149,2]
[367557369,1750853456421,-460.0,0.00018149,2]
[367557370,1750853456431,-460.0,0.00018149,2]
[367557371,1750853456440,-999.7,0.00018149,2]
[367557372,1750853456449,-1646.41,0.00018149,2]
[367557373,1750853456459,-471.74,0.00018149,2]
[367557374,1750853456468,-460.0,0.00018149,2]
[367557375,1750853456478,-460.0,0.00018149,2]
[367557376,1750853456487,-460.0,0.00018149,2]
[367557377,1750853456497,-585.17,0.00018149,2]
[367557378,1750853456506,-828.45,0.00018149,2]
[367557379,1750853456515,-460.0,0.00018149,2]
[367557380,1750853456525,-151.0,0.00018149,2]
[367557381,1750853456534,-151.0,0.00018149,2]
[367557382,1750853456543,-261.9,0.00018149,2]
[367557383,1750853456553,-295.39,0.00018149,2]
[367557384,1750853456563,-460.0,0.0001815,2]
[367557385,1750853456572,-460.0,0.0001815,2]
[367557386,1750853456581,-460.0,0.0001815,2]
[367557387,1750853456590,-460.0,0.0001815,2]
[367557388,1750853456599,-460.0,0.0001815,2]
[367557389,1750853456609,-460.0,0.0001815,2]
[367557390,1750853456619,-460.0,0.0001815,2]
[367557391,1750853456628,-460.0,0.0001815,2]
[367557392,1750853456638,-151.0,0.0001815,2]
[367557393,1750853456647,-566.61,0.0001815,2]
[367557394,1750853456657,-460.0,0.0001815,2]
[367557395,1750853456666,-151.0,0.0001815,2]
[367557396,1750853456675,-460.0,0.0001815,2]
[367557397,1750853456685,-664.93,0.0001815,2]
[367557398,1750853456694,-168.77,0.0001815,2]
[367557399,1750853456705,-460.0,0.0001815,2]
[367557400,1750853456715,-460.0,0.0001815,2]
[367557401,1750853456726,-785.78,0.0001815,2]
[367557402,1750853456735,-346.04,0.0001815,2]
[367557403,1750853456744,-232.115281,0.0001815,2]
[367557404,1750853456753,-570.31,0.0001815,2]
[367557405,1750853456762,-232.115281,0.0001815,2]
[367557406,1750853456772,-460.0,0.0001815,2]
[367557407,1750853456781,-183.702247,0.0001815,2]
[367557408,1750853456790,-183.702247,0.0001815,2]
[367557409,1750853456799,-4575.74,0.0001815,2]
[367557410,1750853456808,-460.0,0.0001815,2]
[367557411,1750853456817,-264.072463,0.0001815,2]
[367557412,1750853456827,-264.072463,0.0001815,2]
[367557413,1750853456836,-460.0,0.0001815,2]
[367557414,1750853456845,-882.47,0.0001815,2]
[367557415,1750853456855,-460.0,0.0001815,2]
[367557416,1750853456864,-844.11,0.0001815,2]
[367557417,1750853456877,-485.34,0.0001815,2]
[367557418,1750853456886,-460.0,0.0001815,2]
[367557419,1750853456896,-4869.53,0.0001815,2]
[367557420,1750853456905,-460.0,0.0001815,2]
[367557421,1750853456915,-460.0,0.0001815,2]
[367557422,1750853456924,-460.0,0.0001815,2]
[367557423,1750853456933,-460.0,0.0001815,2]
[367557424,1750853456942,-438.07,0.0001815,2]
[367557425,1750853456952,-463.23,0.0001815,2]
[367557426,1750853456961,-460.0,0.0001815,2]
[367557427,1750853456970,-541.05,0.0001815,2]
[367557428,1750853456979,-460.0,0.0001815,2]
[367557429,1750853456989,-2293.61,0.0001815,2]
[367557430,1750853456999,-460.0,0.0001815,2]
[367557431,1750853457008,-588.21,0.00018151,2]
[367557432,1750853457018,-460.0,0.00018151,2]
[367557433,1750853457027,-582.32,0.00018151,2]
[367557434,1750853457036,-151.0,0.00018151,2]
[367557435,1750853457045,-618.04,0.00018151,2]
[367557436,1750853457055,-460.0,0.00018151,2]
[367557437,1750853457064,-2654.61,0.00018151,2]
[367557438,1750853457073,-368.373694,0.00018151,2]
[367557439,1750853457082,-368.373694,0.00018151,2]
[367557440,1750853457091,-460.0,0.00018151,2]
[367557441,1750853457101,-2077.28,0.00018151,2]
[367557442,1750853457111,-460.0,0.00018151,2]
[367557443,1750853457120,-1737.61,0.00018151,2]
[367557444,1750853457129,-460.0,0.00018151,2]
[367557445,1750853457139,-5429.04,0.00018151,2]
[367557446,1750853457148,-1878.65,0.00018151,2]
[367557447,1750853457159,-154.991109,0.00018151,2]
[367557448,1750853457172,-151.0,0.00018151,2]
[367557449,1750853457182,-1443.0,0.00018151,2]
[367557450,1750853457193,-542.41567513,0.00018151,2]
[367557451,1750853457206,-1131.81,0.00018151,2]
[367557452,1750853457219,-154.743288,0.00018151,2]
[367557453,1750853457235,-168.13798403,0.00018151,2]
[367557454,1750853457246,-154.743288,0.00018151,2]
[367557455,1750853457255,-151.0,0.00018151,2]
[367557456,1750853457353,-460.0,0.00018152,2]
[367557457,1750853457363,-460.0,0.00018152,2]
[367557458,1750853457374,-151.0,0.00018152,2]
[367557459,1750853457383,-151.0,0.00018152,2]
[367557460,1750853457393,-259.92698687,0.00018152,2]
[367557461,1750853457402,-151.0,0.00018152,2]
[367557462,1750853457411,-151.0,0.00018152,2]
[367557463,1750853457421,-151.0,0.00018152,2]
[367557464,1750853457430,-439.612469,0.00018152,2]
[367557465,1750853457439,-439.612469,0.00018152,2]
[367557466,1750853457448,-151.0,0.00018152,2]
[367557467,1750853457457,-268.703384,0.00018152,2]
[367557468,1750853457469,-263.452831,0.00018152,2]
[367557469,1750853457479,-151.0,0.00018152,2]
[367557470,1750853457488,-383.85952,0.00018152,2]
[367557471,1750853457498,-383.85952,0.00018152,2]
[367557472,1750853457508,-151.0,0.00018152,2]
[367557473,1750853457517,-151.0,0.00018152,2]
[367557474,1750853457527,-475.32,0.00018152,2]
[367557475,1750853457536,-151.0,0.00018152,2]
[367557476,1750853457545,-428.2852463,0.00018152,2]
[367557477,1750853457555,-460.0,0.00018152,2]
[367557478,1750853457564,-460.0,0.00018152,2]
[367557479,1750853457573,-284.42,0.00018152,2]
[367557480,1750853457582,-460.0,0.00018153,2]
[367557481,1750853457591,-460.0,0.00018153,2]
[367557482,1750853457601,-269.72,0.00018153,2]
[367557483,1750853457610,-460.0,0.00018153,2]
[367557484,1750853457619,-460.0,0.00018153,2]
[367557485,1750853457628,-460.0,0.00018153,2]
[367557486,1750853457638,-881.44,0.00018153,2]
[367557487,1750853457647,-515.94,0.00018153,2]
[367557488,1750853457656,-257.91333193,0.00018153,2]
[367557489,1750853457665,-151.0,0.00018154,2]
[367557490,1750853457675,-151.0,0.00018154,2]
[367557491,1750853457684,-151.0,0.00018154,2]
[367557492,1750853457694,-151.0,0.00018154,2]
[367557493,1750853457703,-151.0,0.000182,2]
[367557494,1750853457712,-649.0,0.0001821,2]
[367557495,1750853457721,-151.0,0.0001823,2]
[367557496,1750853457730,-404.008194,0.0001823,2]
[367557497,1750853457740,-404.008194,0.0001823,2]
[367557498,1750853457749,-151.0,0.0001823,2]
[367557499,1750853457758,-214.539556,0.0001823,2]
[367557500,1750853457767,-214.539556,0.0001823,2]
[367557501,1750853457776,-207.922743,0.0001823,2]
[367557502,1750853457785,-207.922743,0.0001823,2]
[367557503,1750853457794,-5000.0,0.0001823,2]
[367557504,1750853457803,-420.91584668,0.00018255,2]
[367557505,1750853457812,-649.0,0.00018257,2]
[367557506,1750853457821,-7226.84719651,0.00018279,2]
[367557507,1750853457831,-649.0,0.00018297,2]
[367557508,1750853457840,-574.9477627,0.00018309,2]
[367557509,1750853457850,-574.9477627,0.00018309,2]
[367557510,1750853457860,-574.9477627,0.00018309,2]
[367557511,1750853457871,-420.0,0.00018322,2]
[367557512,1750853457880,-1680.0,0.00018323,2]
[367557513,1750853457889,-581.8454779,0.00018336,2]
[367557514,1750853457898,-159.1939926,0.00018336,2]
[367557515,1750853457908,-649.0,0.00018362,2]
[367557516,1750853457917,-6068.96268102,0.000184,2]
[367557517,1750853457927,-180.01620146,0.000184,2]
[367557518,1750853457936,-151.0,0.000184,2]
[367557519,1750853457946,-151.0,0.00018408,2]
[367557520,1750853457955,-154.342496,0.00018408,2]
[367557521,1750853457964,-151.0,0.00018408,2]
[367557522,1750853457974,-1020.48548504,0.00018408,2]
[367557523,1750853457983,-170.876532,0.00018408,2]
[367557524,1750853457992,-219.78259,0.00018408,2]
[367557525,1750853458001,-170.876532,0.00018408,2]
[367557526,1750853458010,-219.78259,0.00018408,2]
[367557527,1750853458019,-528.82711,0.00018408,2]
[367557528,1750853458028,-528.82711,0.00018408,2]
[367557529,1750853458037,-510.24274253,0.00018408,2]
[367557530,1750853458046,-1176.0,0.00018413,2]
[367557531,1750853458055,-526.1,0.00018422,2]
[367557532,1750853458065,-1482.13,0.00018422,2]
[367557533,1750853458074,-2765.63,0.00018422,2]
[367557534,1750853458083,-3064.74,0.00018422,2]
[367557535,1750853458092,-460.0,0.00018422,2]
[367557536,1750853458102,-460.0,0.00018422,2]
[367557537,1750853458111,-278.24,0.00018422,2]
[367557538,1750853458120,-460.0,0.00018422,2]
[367557539,1750853458129,-2702.51,0.00018422,2]
[367557540,1750853458138,-215.216734,0.00018423,2]
[367557541,1750853458148,-151.0,0.00018423,2]
[367557542,1750853458157,-151.0,0.00018423,2]
[367557543,1750853458166,-439.612469,0.00018423,2]
[367557544,1750853458175,-439.612469,0.00018423,2]
[367557545,1750853458186,-1590.6,0.00018423,2]
[367557546,1750853458198,-2531.11,0.00018423,2]
[367557547,1750853458209,-460.0,0.00018423,2]
[367557548,1750853458219,-460.0,0.00018423,2]
[367557549,1750853458231,-999.7,0.00018423,2]
[367557550,1750853458247,-1646.41,0.00018423,2]
[367557551,1750853458263,-471.74,0.00018423,2]
[367557552,1750853458278,-460.0,0.00018423,2]
[367557553,1750853458287,-460.0,0.00018423,2]
[367557554,1750853458297,-460.0,0.00018423,2]
[367557555,1750853458306,-585.17,0.00018423,2]
[367557556,1750853458314,-828.45,0.00018423,2]
[367557557,1750853458327,-460.0,0.00018423,2]
[367557558,1750853458336,-151.0,0.00018423,2]
[367557559,1750853458346,-246.899006,0.00018423,2]
[367557560,1750853458355,-460.0,0.00018424,2]
[367557561,1750853458364,-460.0,0.00018424,2]
[367557562,1750853458374,-460.0,0.00018424,2]
[367557563,1750853458383,-460.0,0.00018424,2]
[367557564,1750853458391,-460.0,0.00018424,2]
[367557565,1750853458400,-521.12,0.00018424,2]
[367557566,1750853458410,-460.0,0.00018424,2]
[367557567,1750853458419,-460.0,0.00018424,2]
[367557568,1750853458427,-151.0,0.00018424,2]
[367557569,1750853458437,-460.0,0.00018424,2]
[367557570,1750853458445,-151.0,0.00018424,2]
[367557571,1750853458454,-308.98,0.00018424,2]
[367557572,1750853458464,-664.93,0.00018424,2]
[367557573,1750853458473,-460.0,0.00018424,2]
[367557574,1750853458481,-460.0,0.00018424,2]
[367557575,1750853458491,-785.78,0.00018424,2]
[367557576,1750853458502,-232.115281,0.00018424,2]
[367557577,1750853458511,-570.31,0.00018424,2]
[367557578,1750853458520,-232.115281,0.00018424,2]
[367557579,1750853458530,-460.0,0.00018424,2]
[367557580,1750853458540,-183.702247,0.00018424,2]
[367557581,1750853458549,-183.702247,0.00018424,2]
[367557582,1750853458558,-4575.74,0.00018424,2]
[367557583,1750853458568,-460.0,0.00018424,2]
[367557584,1750853458577,-264.072463,0.00018424,2]
[367557585,1750853458586,-264.072463,0.00018424,2]
[367557586,1750853458595,-460.0,0.00018424,2]
[367557587,1750853458605,-882.47,0.00018424,2]
[367557588,1750853458615,-226.42,0.00018424,2]
[367557589,1750853458625,-844.11,0.00018424,2]
[367557590,1750853458634,-460.0,0.00018424,2]
[367557591,1750853458644,-4869.53,0.00018424,2]
[367557592,1750853458653,-460.0,0.00018424,2]
[367557593,1750853458663,-460.0,0.00018424,2]
[367557594,1750853458671,-460.0,0.00018424,2]
[367557595,1750853458681,-460.0,0.00018424,2]
[367557596,1750853458690,-460.0,0.00018424,2]
[367557597,1750853458699,-541.05,0.00018424,2]
[367557598,1750853458708,-460.0,0.00018424,2]
[367557599,1750853458717,-2293.61,0.00018424,2]
[367557600,1750853458727,-460.0,0.00018424,2]
[367557601,1750853458736,-1888.21926,0.00018425,2]
[367557602,1750853458745,-1888.21926,0.00018425,2]
[367557603,1750853458755,-588.21,0.00018425,2]
[367557604,1750853458763,-460.0,0.00018425,2]
[367557605,1750853458772,-582.32,0.00018425,2]
[367557606,1750853458783,-151.0,0.00018425,2]
[367557607,1750853458792,-618.04,0.00018425,2]
[367557608,1750853458801,-581.14161172,0.00018425,2]
[367557609,1750853458810,-2654.61,0.00018425,2]
[367557610,1750853458819,-368.373694,0.00018425,2]
[367557611,1750853458828,-368.373694,0.00018425,2]
[367557612,1750853458837,-370.25,0.00018425,2]
[367557613,1750853458846,-2077.28,0.00018425,2]
[367557614,1750853458855,-460.0,0.00018425,2]
[367557615,1750853458947,-1737.61,0.00018425,2]
[367557616,1750853458956,-460.0,0.00018425,2]
[367557617,1750853458966,-5429.04,0.00018425,2]
[367557618,1750853458975,-1878.65,0.00018425,2]
[367557619,1750853458985,-263.022273,0.00018425,2]
[367557620,1750853458994,-1443.0,0.00018425,2]
[367557621,1750853459005,-1131.81,0.00018425,2]
[367557622,1750853459015,-154.743288,0.00018425,2]
[367557623,1750853459024,-154.743288,0.00018425,2]
[367557624,1750853459033,-298.161629,0.00018425,2]
[367557625,1750853459042,-460.0,0.00018426,2]
[367557626,1750853459051,-240.53,0.00018426,2]
[367557627,1750853459060,-151.0,0.00018426,2]
[367557628,1750853459069,-475.32,0.00018426,2]
[367557629,1750853459079,-460.0,0.00018426,2]
[367557630,1750853459088,-460.0,0.00018426,2]
[367557631,1750853459097,-237.34,0.00018427,2]
[367557632,1750853459106,-460.0,0.00018427,2]
[367557633,1750853459115,-460.0,0.00018427,2]
[367557634,1750853459125,-460.0,0.00018427,2]
[367557635,1750853459134,-460.0,0.00018427,2]
[367557636,1750853459143,-151.0,0.00018427,2]
[367557637,1750853459152,-881.44,0.00018427,2]
[367557638,1750853459161,-263.452831,0.00018427,2]
[367557639,1750853459170,-151.0,0.00018427,2]
[367557640,1750853459179,-383.85952,0.00018427,2]
[367557641,1750853459188,-383.85952,0.00018427,2]
[367557642,1750853459197,-151.0,0.00018427,2]
[367557643,1750853459206,-151.0,0.00018427,2]
[367557644,1750853459215,-151.0,0.00018427,2]
[367557645,1750853459225,-12558.06783089,0.0001843,3]
[367557646,1750853459234,-846.80634355,0.0001843,3]
[367557647,1750853459243,-213.69531788,0.0001843,3]
[367557648,1750853459252,-524.21181985,0.0001843,3]
[367557649,1750853459261,-153.707783,0.00018463,2]
[367557650,1750853459270,-151.0,0.00018463,2]
[367557651,1750853459279,-151.0,0.000185,2]
[367557652,1750853459288,-1169.53532196,0.000185,2]
[367557653,1750853459298,-1500.0,0.00018503,2]
[367557654,1750853459308,-151.0,0.00018555,2]
[367557655,1750853459317,-404.008194,0.00018555,2]
[367557656,1750853459329,-404.008194,0.00018555,2]
[367557657,1750853459338,-151.0,0.00018555,2]
[367557658,1750853459346,-214.539556,0.00018555,2]
[367557659,1750853459354,-214.539556,0.00018555,2]
[367557660,1750853459363,-207.922743,0.00018555,2]
[367557661,1750853459373,-207.922743,0.00018555,2]
[367557662,1750853459382,-7226.84719651,0.00018555,2]
[367557663,1750853459390,-615.0,0.00018564,2]
[367557664,1750853459401,-854.0,0.00018568,2]
[367557665,1750853459410,-649.0,0.00018607,2]
[367557666,1750853459419,-160.0,0.00018674,3]
[367557667,1750853459428,-649.0,0.00018675,2]
[367557668,1750853459437,-1482.13,0.00018696,2]
[367557669,1750853459446,-2765.63,0.00018696,2]
[367557670,1750853459455,-3064.74,0.00018696,2]
[367557671,1750853459464,-460.0,0.00018696,2]
[367557672,1750853459473,-460.0,0.00018696,2]
[367557673,1750853459482,-460.0,0.00018696,2]
[367557674,1750853459492,-2702.51,0.00018696,2]
[367557675,1750853459501,-1590.6,0.00018697,2]